[Event "SixDays Budapest IM-B 10-2024"]
[Site "Budapest"]
[Date "2024.10.02"]
[Round "5.1"]
[White "Gatineau, Yovann"]
[Black "Horvath, David"]
[Result "0-1"]
[ECO "D38"]
[WhiteElo "2400"]
[BlackElo "2327"]
[Annotator "TA"]
[PlyCount "122"]
[EventDate "2024.09.24"]
[EventType "tourn"]
[EventCountry "HUN"]
[SourceTitle "playchess.com"]
[Source "ChessBase"]
[SourceQuality "1"]
[TimeControl "5400+30"]

{[%evp 15,121,13,5,9,16,16,18,16,12,29,15,13,19,-35,-13,-20,-9,-37,-7,-7,-13,-9,-23,-35,-39,-35,-42,-55,-58,-52,-46,-66,-33,-50,-11,-15,-15,-60,-69,-54,-59,-96,-101,-110,-111,-112,-113,-103,-96,-179,-179,-179,-149,-145,-149,-160,-160,-160,-143,-162,-126,-126,-119,-162,-162,-868,-861,-1685,-1220,-3973,-2334,-12792,-10915,-29973,-29972,-29975,-29976,-29980,-29978,-29978,-29979,-29983,-29984,-29984,-29981,-29980,-29981,-29981,-29982,-29982,-29983,-29983,-29984,-29984,-29985,-29986,-29986,-29986,-29987,-29996,-29996,-29996,-29997,-29997,-29998,-29998,-29999,-29999]} 1. d4 {[%emt 0:02:50]} Nf6 {[%emt 0:00:07]} 2. c4 {[%emt 0:00:05]} e6 {[%emt 0:00:04]} 3. Nf3 {[%emt 0:00:09]} d5 {[%emt 0:00:06]} 4. Nc3 {[%emt 0:00:08]} Bb4 {[%emt 0:00:06]} 5. Qa4+ {[%emt 0:01:34]} Nc6 {[%emt 0:00:06]} 6. e3 {[%emt 0:00:04]} O-O {[%emt 0:05:29]} 7. Qc2 {[%emt 0:01:21] D38: Queen's Gambit Declined: Ragozin Defence (4 Nf3 Bb4).} Re8 {[%emt 0:06:12]} 8. Bd2 {[%emt 0:04:19]} Bf8 {[%emt 0:24:02]} 9. Be2 {[%emt 0:01:07]} e5 {[%emt 0:10:24]} 10. dxe5 $146 {[%emt 0:27:47]} ({Predecessor:} 10. cxd5 Nb4 11. Qb3 exd4 12. Nxd4 Nbxd5 13. Bc4 c6 14. O-O Bc5 15. Nxd5 Nxd5 16. Bc3 {½-½ Svane,R (2623)-Halvax,G (2458) AUT-chT 2324 2023 (9.3)}) 10... Nxe5 {[%emt 0:05:51]} 11. cxd5 {[%emt 0:02:19]} Nxd5 {[%emt 0:00:59]} 12. Nxd5 {[%emt 0:01:00]} Qxd5 {[%emt 0:00:31]} 13. Bc3 {[%emt 0:02:42]} Nxf3+ {[%emt 0:08:34]} 14. gxf3 {[%emt 0:00:07]} ({Better is} 14. Bxf3 $11 Qc4 15. Be2) 14... Bf5 {[%emt 0:05:24]} 15. Qa4 {[%emt 0:02:11]} Rad8 {[%emt 0:15:26]} 16. Rg1 {[%emt 0:01:44]} Qd6 {[%emt 0:06:59]} 17. Qh4 {[%emt 0:02:58]} g6 {[%emt 0:00:43]} 18. Rd1 {[%emt 0:15:33]} Qe7 $1 {[%emt 0:00:05]} 19. Qf4 {[%emt 0:01:25]} (19. Qxe7 {simplifies} Rxd1+ 20. Kxd1 Rxe7 21. Kc1) 19... Rxd1+ {[%emt 0:01:32]} 20. Bxd1 {[%emt 0:00:22]} Qd7 {[%emt 0:01:48]} 21. Be2 {[%emt 0:13:30]} Bg7 {[%emt 0:00:15]} 22. Bxg7 {[%emt 0:01:18]} Kxg7 {[%emt 0:00:06]} 23. Qb4 {[%emt 0:00:13]} Qc6 {[%emt 0:01:56]} 24. Qd4+ $1 {[%emt 0:01:33]} Qf6 {[%emt 0:00:15]} 25. Qxf6+ {[%emt 0:02:14]} Kxf6 {[%emt 0:00:04]} 26. Kd2 {[%emt 0:00:13]} Rd8+ {[%emt 0:01:36]} 27. Kc3 {[%emt 0:00:05]} Rd6 {[%emt 0:00:32]} 28. e4 {[%emt 0:02:10]} Be6 {[%emt 0:00:08]} 29. f4 {[%emt 0:00:31]} Rc6+ {[%emt 0:01:31]} (29... Bxa2 $2 {is the wrong capture.} 30. e5+ Ke6 31. exd6 $18) 30. Kd2 {[%emt 0:00:10]} Bxa2 {[%emt 0:00:23]} 31. Ra1 {[%emt 0:00:31]} Bc4 $1 {[%emt 0:00:05]} 32. Bxc4 {[%emt 0:00:47]} (32. Bg4 $17 {was called for.}) 32... Rxc4 $19 {[%emt 0:00:08]} 33. Rxa7 {[%emt 0:05:24]} Rxe4 {[%emt 0:01:20]} 34. Rxb7 {[%emt 0:00:20]} Rxf4 {[%emt 0:00:04]} 35. Ke3 {[%emt 0:01:36]} Rc4 {[%emt 0:00:06]} 36. b4 {[%emt 0:01:05]} Kg5 {[%emt 0:01:33]} 37. b5 {[%emt 0:00:48]} f5 {[%emt 0:00:51]} 38. Kf3 {[%emt 0:01:26]} Kh4 {[%emt 0:01:46]} 39. Kg2 {[%emt 0:01:20] [#]} h5 $1 {[%emt 0:00:47]} 40. h3 $2 {[%emt 0:02:05]} (40. b6) 40... g5 $19 {[%emt 0:00:55]} 41. b6 {[%emt 0:00:12]} cxb6 {[%emt 0:00:05]} 42. Rxb6 {[%emt 0:00:09] [#]} Rc3 $1 {[%emt 0:00:08]} 43. Rg6 {[%emt 0:04:04]} Rxh3 {[%emt 0:01:04]} 44. Rg8 {[%emt 0:00:30]} Ra3 {[%emt 0:00:27]} 45. Rg7 {[%emt 0:00:26]} f4 {[%emt 0:00:09]} 46. Rf7 {[%emt 0:00:27]} Kg4 {[%emt 0:00:07]} 47. Rb7 {[%emt 0:00:23]} h4 {[%emt 0:00:15]} 48. Rb2 {[%emt 0:00:32]} h3+ {[%emt 0:00:28]} 49. Kh2 {[%emt 0:00:05]} Kh4 {[%emt 0:00:27]} 50. Rc2 {[%emt 0:00:46]} g4 {[%emt 0:00:29]} 51. Rc4 {[%emt 0:00:39]} Rf3 {[%emt 0:00:07]} 52. Kg1 {[%emt 0:00:14]} h2+ {[%emt 0:00:06]} 53. Kxh2 {[%emt 0:00:18]} Rxf2+ {[%emt 0:00:06]} 54. Kg1 {[%emt 0:00:04]} Kg3 {[%emt 0:00:08]} 55. Re4 {[%emt 0:00:52]} Ra2 {[%emt 0:00:07]} 56. Re1 {[%emt 0:00:10]} f3 {[%emt 0:00:04]} 57. Rf1 {[%emt 0:01:04]} Rg2+ {[%emt 0:00:05]} 58. Kh1 {[%emt 0:00:03]} Rh2+ {[%emt 0:00:05]} 59. Kg1 {[%emt 0:00:05]} f2+ {[%emt 0:00:05]} 60. Rxf2 {[%emt 0:00:06]} Rxf2 {[%emt 0:00:04]} 61. Kh1 {[%emt 0:00:04]} Rf1# 0-1

[Event "SixDays Budapest IM-B 10-2024"]
[Site "Budapest"]
[Date "2024.10.02"]
[Round "5.2"]
[White "Fodor, Balazs"]
[Black "Kao, Jamison Edrich"]
[Result "0-1"]
[ECO "E73"]
[WhiteElo "2240"]
[BlackElo "2125"]
[Annotator "TA"]
[PlyCount "182"]
[EventDate "2024.09.24"]
[EventType "tourn"]
[EventCountry "HUN"]
[SourceTitle "playchess.com"]
[Source "ChessBase"]
[SourceQuality "1"]
[TimeControl "5400+30"]

{[%evp 16,182,61,35,50,31,47,52,89,31,17,0,0,0,14,5,26,30,25,0,0,0,24,23,37,27,73,64,60,44,37,-67,67,76,72,69,67,60,81,5,12,10,12,11,20,0,0,0,0,0,0,0,170,135,144,-34,0,-12,-12,-15,0,-35,-18,-11,0,0,0,0,0,0,10,-157,-154,-147,-27,-17,-20,-28,-8,-138,-114,-212,-222,-223,-260,-460,-450,-450,-435,-582,-449,-810,-456,-694,-720,-622,-504,-2620,-2710,-4779,-4770,-5543,-9826,-29967,-29968,-29966,-29968,-5106,0,-1237,-979,-1100,-1064,-1050,-28,-50,-8,-177,-177,-177,-177,-526,-8,-8,-8,-8,-8,-8,-8,-8,-8,-8,-8,-8,-8,-18,-8,-8,-8,-32,-32,-32,-8,-8,-8,-34,-43,-37,-8,-5631,-4793,-29984,-8,-8,-8,-8,-8,-8,-8,-8,0,-8,-8,-29984,-29985,-29987,-29988,-29988,-29989]} 1. d4 {[%emt 0:00:03]} Nf6 {[%emt 0:05:34]} 2. c4 {[%emt 0:00:11]} g6 {[%emt 0:00:04]} 3. Nc3 {[%emt 0:00:06]} Bg7 {[%emt 0:00:02]} 4. e4 {[%emt 0:00:10]} d6 {[%emt 0:00:02]} 5. Be2 {[%emt 0:00:07]} O-O {[%emt 0:00:35]} 6. Be3 {[%emt 0:00:08]} Na6 {[%emt 0:03:09]} 7. Nf3 {[%emt 0:00:08]} e5 {[%emt 0:00:24]} 8. O-O {[%emt 0:00:26]} c6 {[%emt 0:01:00]} 9. Qc2 {[%emt 0:04:33]} Ng4 {[%emt 0:10:13]} 10. Bg5 {[%emt 0:00:08]} f6 {[%emt 0:00:04]} 11. Bh4 {[%emt 0:00:28]} h5 {[%emt 0:01:40] White is slightly better.} 12. dxe5 {[%emt 0:08:19]} (12. h3 $16) 12... dxe5 $14 {[%emt 0:01:05]} 13. Bg3 {[%emt 0:05:21]} Qe7 {[%emt 0:03:56]} 14. a3 {[%emt 0:08:27]} Be6 {[%emt 0:01:35]} 15. b4 {[%emt 0:00:19]} (15. h3 $5 Nh6 $8 16. Rad1 $11) 15... Rad8 {[%emt 0:01:13]} 16. h3 {[%emt 0:16:58]} Nh6 {[%emt 0:01:44]} 17. c5 {[%emt 0:03:49]} Nc7 {[%emt 0:02:22][%cal Ba6c7,Bc7e6,Be6d4][%mdl 32]} 18. Nd1 {[%emt 0:01:32][%cal Bc3d1,Bd1e3,Be3c4,Bc4d6][%mdl 32]} Bf7 {[%emt 0:21:22]} 19. Ne3 {[%emt 0:00:46]} Ne6 {[%emt 0:00:12]} 20. Nc4 {[%emt 0:05:52]} g5 {[%emt 0:11:52]} (20... Kh7 $11 {feels stronger.}) 21. Nd6 $16 {[%emt 0:01:07]} g4 {[%emt 0:00:22]} 22. Nh4 {[%emt 0:00:46]} Nd4 {[%emt 0:00:28]} 23. Qb2 {[%emt 0:01:30]} (23. Qd3 $14) 23... Rxd6 {[%emt 0:05:40]} (23... f5 $15 24. exf5 gxh3) 24. cxd6 $14 {[%emt 0:00:06]} Qxd6 {[%emt 0:00:04]} 25. hxg4 {[%emt 0:00:35]} hxg4 {[%emt 0:00:30]} 26. Rac1 {[%emt 0:01:21]} b5 {[%emt 0:02:54] [#]} 27. Nf5 {[%emt 0:06:27]} Nhxf5 $11 {[%emt 0:08:22]} 28. exf5 {[%emt 0:00:06]} Nxf5 {[%emt 0:00:24]} 29. Rfd1 {[%emt 0:01:10]} Bd5 {[%emt 0:01:29]} 30. Rc5 {[%emt 0:09:45]} (30. Bxg4 Nxg3 31. fxg3 f5 $17) (30. Qc3 $5) 30... a6 {[%emt 0:05:42]} (30... Nxg3 31. Bxb5 Ne4 32. Rxc6 Bxc6 33. Rxd6 Bxb5 34. Qb3+ Kh8 35. Rd1 $18) 31. Qc3 {[%emt 0:05:59]} (31. Bxg4 Nxg3 32. fxg3 f5 $17) 31... Nxg3 {[%emt 0:01:49]} 32. Qxg3 {[%emt 0:00:01]} f5 {[%emt 0:00:21]} 33. a4 {[%emt 0:00:25][%cal Ra4b5]} Qe6 $2 {[%emt 0:05:52]} (33... bxa4 $6 34. Bc4 (34. Bxa6 Qg6 $14) 34... Qe7 35. Bxd5+ cxd5 36. Rdxd5 $18) (33... Qg6 $1 $11) 34. axb5 $18 {[%emt 0:00:07]} axb5 {[%emt 0:00:03]} 35. Ra1 $2 {[%emt 0:05:41]} ({White has to play} 35. Bxb5 $16 {[%cal Og3c3] Hoping for Qc3!} Rf6 36. Rdxd5 cxd5 37. Qb3) 35... Rf6 {[%emt 0:02:03]} 36. Ra8+ {[%emt 0:01:23]} Kh7 {[%emt 0:00:05]} 37. Ra7 {[%emt 0:01:42]} Rh6 {[%emt 0:03:59]} 38. f3 {[%emt 0:01:59]} (38. Bxb5 $5 Rh5 (38... cxb5 $2 39. Rcc7 $18) 39. Bxc6 Bxc6 40. Qxe5 Qxe5 41. Rxe5 $16) 38... Qf6 {[%emt 0:00:37] Strongly threatening ...e4.} 39. fxg4 {[%emt 0:04:41] Threatens to win with g5.} f4 {[%emt 0:00:24]} 40. g5 {[%emt 0:00:32]} fxg3 {[%emt 0:00:04]} 41. gxf6 {[%emt 0:00:04]} Rxf6 {[%emt 0:00:03]} 42. Rc3 {[%emt 0:02:34]} Rg6 {[%emt 0:00:56] White must now prevent ...e4.} 43. Raa3 $2 {[%emt 0:00:28]} ({White should play} 43. Bh5 $11 Rg5 44. Bf7 (44. Be8 e4 $11)) 43... Bf8 $17 {[%emt 0:00:35] This pair of bishops is nice.} 44. Rxg3 {[%emt 0:00:07]} Rxg3 {[%emt 0:00:09]} (44... Bxb4 $17 45. Ra7+ Kh6 46. Rxg6+ Kxg6) 45. Rxg3 $11 {[%emt 0:00:04]} Bxb4 $17 {[%emt 0:00:04][%mdl 4096] Endgame. KRB-KB} 46. Kf1 {[%emt 0:01:10]} Bd6 {[%emt 0:00:51] Threatening ...e4.} 47. Ke1 {[%emt 0:00:12]} (47. Rg4 $11) 47... b4 {[%emt 0:00:22]} 48. Kd1 {[%emt 0:02:21]} (48. Bg4 $17) 48... e4 $19 {[%emt 0:00:14]} 49. Rg4 {[%emt 0:00:52]} Kh6 {[%emt 0:00:35]} 50. Kc2 $2 {[%emt 0:01:54]} (50. Kd2) 50... b3+ {[%emt 0:00:13]} 51. Kb1 {[%emt 0:00:32]} Be5 {[%emt 0:00:05]} 52. Rh4+ {[%emt 0:00:47]} Kg6 {[%emt 0:00:18]} 53. Rh1 {[%emt 0:00:49]} (53. Kc1 $142 Kf6 54. Rh6+ Kf5 55. Rh5+ Ke6 56. Rh3) 53... Kf6 {[%emt 0:00:49]} 54. Rh6+ {[%emt 0:00:55]} Ke7 {[%emt 0:00:20]} 55. Rh3 {[%emt 0:00:14]} Bd4 {[%emt 0:00:43]} 56. Bd1 {[%emt 0:01:30]} (56. Rh6 $142 e3 57. Rh4) 56... e3 {[%emt 0:00:50]} 57. Rh4 {[%emt 0:00:14] Repels Be4+} Bf6 {[%emt 0:00:19]} 58. Rg4 {[%emt 0:00:56]} Kd6 {[%emt 0:00:44]} 59. Bf3 {[%emt 0:00:20]} Be6 {[%emt 0:00:36]} 60. Rb4 {[%emt 0:00:34]} Bf5+ {[%emt 0:00:39]} 61. Kc1 {[%emt 0:00:08]} Be6 $2 {[%emt 0:01:22]} (61... b2+ $1 $19 62. Rxb2 Bxb2+ 63. Kxb2 Be4) 62. g4 $2 {[%emt 0:00:51][%mdl 8192]} (62. Kb1 $11 Kc5 63. Rb8) 62... c5 {[%emt 0:00:39]} 63. Rb6+ {[%emt 0:00:13]} Ke5 {[%emt 0:00:18]} 64. Be2 {[%emt 0:00:20]} Bg7 $2 {[%emt 0:00:49]} ({Black should try} 64... Bd5 $1 $19 65. Kd1 c4) 65. Rc6 $1 $11 {[%emt 0:00:51]} b2+ {[%emt 0:00:31]} 66. Kb1 $2 {[%emt 0:00:22] [#]} (66. Kc2 $1 $11 {and White stays safe.}) 66... c4 $1 $19 {[%emt 0:00:25][%mdl 512] ...Bd5 would now be deadly.} 67. Rc7 {[%emt 0:00:47]} (67. Rxe6+ Kxe6) 67... Bf6 {[%emt 0:00:26] ...Kd6 is the strong threat.} 68. g5 $2 {[%emt 0:00:24]} (68. Kc2) 68... Bxg5 $2 {[%emt 0:00:33]} (68... Bh8 $1 $19 {And now ...Kf4 would win.} 69. g6 Bf6) 69. Kxb2 $11 {[%emt 0:00:06]} Kd4 {[%emt 0:00:17]} 70. Ra7 $1 {[%emt 0:00:31]} Bf4 {[%emt 0:00:31]} 71. Ra6 $132 {[%emt 0:00:31][%mdl 2048] White is not keeping still} Bd5 {[%emt 0:00:15]} 72. Kc1 {[%emt 0:00:53]} Kc3 {[%emt 0:00:39]} 73. Ra3+ {[%emt 0:00:04]} Kb4 {[%emt 0:00:12]} 74. Ra7 {[%emt 0:00:27]} Kb3 {[%emt 0:01:07]} 75. Ra5 {[%emt 0:01:06]} Be4 {[%emt 0:00:15]} 76. Rb5+ {[%emt 0:00:31]} Kc3 {[%emt 0:00:07]} 77. Rc5 {[%emt 0:00:27]} Bd3 {[%emt 0:00:09]} 78. Kd1 {[%emt 0:00:06]} Bc2+ {[%emt 0:00:40]} 79. Kc1 {[%emt 0:00:01]} Bb3 {[%emt 0:00:24]} 80. Rf5 {[%emt 0:00:12]} Bd6 {[%emt 0:00:06]} 81. Ra5 $1 {[%emt 0:00:42] Wards off Ba3+} Bg3 {[%emt 0:00:07]} 82. Bd1 $2 {[%emt 0:01:01][%mdl 8192]} (82. Ra6 $11) 82... Be1 $1 $19 {[%emt 0:00:09] ( -> ...Bd2+)} 83. Bxb3 {[%emt 0:00:22] [#]} Bd2+ $2 {[%emt 0:00:33]} ({Stronger than} 83... cxb3 84. Ra8 $11) (83... e2 $1 {mates} 84. Re5 Bd2+ (84... cxb3 85. Rxe2 Bh4 86. Re3+ Kd4 87. Rxb3 $11) 85. Kb1 Kxb3 (85... e1=B 86. Bc2 $14) 86. Rb5+ Bb4 87. Re5 e1=R+ 88. Rxe1 Bxe1 89. Kc1 c3 90. Kd1 Bh4 91. Ke2 c2 92. Kd2 Bg3 (92... Bg5+ {leads to mate.} 93. Kd3 c1=Q 94. Ke4 Qf4+ 95. Kd5 Qf7+ 96. Kc6 Kc4 97. Kb6 Bd8+ 98. Ka6 Kd4 99. Kb5 Qc4#) 93. Ke3 c1=Q+ (93... c1=R 94. Kf3 Bb8 95. Kg4 Rf1 96. Kh3 Rg1 97. Kh4 Kc4 98. Kh3 Be5 99. Kh4 Kd3 100. Kh3 Bf4 101. Kh4 Ke2 102. Kh3 Kf3 103. Kh4 Rh1#) 94. Kf3 Qf4+ 95. Kg2 Qg4 96. Kh1 Qh3+ 97. Kg1 Qh2+ 98. Kf1 Qf2#) 84. Kd1 $11 {[%emt 0:00:03]} cxb3 {[%emt 0:00:17] KR-KB} 85. Rc5+ {[%emt 0:00:25]} Kb2 {[%emt 0:00:20]} (85... Kd4 $5 86. Rb5 $8 Kc3 $11) 86. Rc8 {[%emt 0:01:23]} Bb4 {[%emt 0:02:44]} 87. Ke2 {[%emt 0:00:17]} Bd2 {[%emt 0:00:26]} 88. Kd3 {[%emt 0:00:18]} Kb1 {[%emt 0:00:22]} 89. Ke2 $2 {[%emt 0:00:51][%mdl 8192]} (89. Rg8 $11) 89... b2 {[%emt 0:00:04] Black mates.} 90. Kd1 {[%emt 0:00:25] [#]} Ka2 $1 {[%emt 0:00:14]} 91. Ra8+ {[%emt 0:00:05]} Kb3 {[%emt 0:00:05] What a fight!   Weighted Error Value: White=0.71/Black=0.31.  Loses game:     	White=3     	Black=1      Missed win:     	---       	Black=1      Mistake:       	White=10    	Black=3      Inaccurate:     	White=4     	Black=4      OK:         	White=25    	Black=18     Best:        	White=4     	Black=7      Strong:       	White=2     	Black=1      Brilliant:      	---       	Black=1} 0-1

[Event "SixDays Budapest IM-B 10-2024"]
[Site "Budapest"]
[Date "2024.10.02"]
[Round "5.3"]
[White "Nemeth, Zalan"]
[Black "Md Imran"]
[Result "1/2-1/2"]
[ECO "A13"]
[WhiteElo "2211"]
[BlackElo "2337"]
[Annotator "TA"]
[PlyCount "54"]
[EventDate "2024.09.24"]
[EventType "tourn"]
[EventCountry "HUN"]
[SourceTitle "playchess.com"]
[Source "ChessBase"]
[SourceQuality "1"]
[TimeControl "5400+30"]

{[%evp 9,54,21,18,18,39,49,43,50,37,25,29,17,67,60,62,56,71,54,68,62,61,53,67,59,90,95,98,87,86,56,50,60,61,64,80,0,0,0,0,0,9,11,18,0,0,0,0]} 1. c4 {[%emt 0:03:55]} e6 {[%emt 0:01:15]} 2. g3 {[%emt 0:00:05]} d5 {[%emt 0:00:29]} 3. Bg2 {[%emt 0:00:06]} Nf6 {[%emt 0:00:04]} 4. Nf3 {[%emt 0:00:05]} c6 {[%emt 0:00:11]} 5. O-O {[%emt 0:00:07]} dxc4 {[%emt 0:00:12]} 6. a4 {[%emt 0:06:31]} a5 {[%emt 0:02:46]} 7. Na3 {[%emt 0:09:07]} Bxa3 {[%emt 0:02:14]} 8. bxa3 {[%emt 0:01:09] White is slightly better.} O-O {[%emt 0:00:30]} 9. Bb2 {[%emt 0:03:47][%mdl 1024] White has compensation.} Nbd7 {[%emt 0:02:36]} 10. Qc2 {[%emt 0:06:52]} Qb6 {[%emt 0:00:41]} ({Better is} 10... b6 $11) 11. Rab1 $14 {[%emt 0:01:42][%cal Ob2f6] [#] Bxf6! is the strong threat.} Qb3 {[%emt 0:02:40]} 12. Rfc1 {[%emt 0:02:27][%cal Bf1c1,Bc1c2,Bc2c4][%mdl 32]} Qxc2 {[%emt 0:01:39]} 13. Rxc2 {[%emt 0:00:06]} Re8 {[%emt 0:01:36]} 14. Rxc4 {[%emt 0:04:05]} e5 {[%emt 0:00:05]} 15. Rcc1 {[%emt 0:08:54]} Nd5 {[%emt 0:05:37]} 16. e4 {[%emt 0:05:53]} N5f6 {[%emt 0:01:04]} 17. d3 {[%emt 0:06:40][%cal Bd2d3,Bd3c4][%mdl 32]} c5 {[%emt 0:00:28]} 18. Nd2 {[%emt 0:06:38] White is more active.} b6 {[%emt 0:00:35]} 19. f4 {[%emt 0:02:06]} Ba6 {[%emt 0:00:40]} 20. Nc4 {[%emt 0:01:00]} Bxc4 {[%emt 0:00:14]} 21. dxc4 {[%emt 0:06:08]} Ra7 {[%emt 0:05:28]} 22. Bxe5 {[%emt 0:01:54]} ({White should try} 22. Re1 $16) 22... Nxe5 $11 {[%emt 0:00:05] The position is equal.} 23. fxe5 {[%emt 0:00:03]} Nd7 {[%emt 0:00:21]} 24. Rd1 {[%emt 0:02:31][%cal Oe5e6]} Nxe5 {[%emt 0:00:40]} ({Of course not} 24... Rxe5 25. Bh3 Nf8 26. Rxb6 $14) 25. Rxb6 {[%emt 0:00:12]} Nxc4 {[%emt 0:00:11]} 26. Rc6 {[%emt 0:00:46]} Nb2 {[%emt 0:00:31]} ({Reject} 26... Nxa3 $6 27. Rxc5 Rb7 28. e5 $18 (28. Rxa5 Nc4 $16)) 27. Rc1 {[%emt 0:01:40]} Nxa4 {[%emt 0:07:17] Weighted Error Value: White=0.09 (flawless) /Black=0.08 (flawless) .  Mistake:       	White=1     	Black=1      Inaccurate:     	White=1     	Black=1      OK:         	White=10    	Black=10     Best:        	White=1     	Black=1} 1/2-1/2

[Event "SixDays Budapest IM-B 10-2024"]
[Site "Budapest"]
[Date "2024.10.02"]
[Round "5.4"]
[White "To, Nhat Minh"]
[Black "Bhagat Kush"]
[Result "0-1"]
[ECO "E71"]
[WhiteElo "2300"]
[BlackElo "2245"]
[Annotator "TA"]
[PlyCount "54"]
[EventDate "2024.09.24"]
[EventType "tourn"]
[EventCountry "HUN"]
[SourceTitle "playchess.com"]
[Source "ChessBase"]
[SourceQuality "1"]
[TimeControl "5400+30"]

{[%evp 11,54,34,51,27,22,0,8,-8,0,-8,0,-21,45,55,106,99,95,74,44,24,35,25,103,87,108,-9,0,-2,0,-8,0,0,120,116,373,351,721,714,661,-447,-456,-29994,-29995,-29995,-1279]} 1. d4 {[%emt 0:00:30]} Nf6 {[%emt 0:02:23]} 2. c4 {[%emt 0:00:23]} g6 {[%emt 0:00:09]} 3. Nc3 {[%emt 0:00:18]} Bg7 {[%emt 0:00:05]} 4. e4 {[%emt 0:00:06]} d6 {[%emt 0:00:03]} 5. h3 {[%emt 0:00:07]} O-O {[%emt 0:00:05]} 6. Be3 {[%emt 0:00:09]} Nbd7 {[%emt 0:00:15]} 7. g4 {[%emt 0:03:33]} a6 {[%emt 0:00:25]} 8. Nge2 {[%emt 0:08:17]} b5 {[%emt 0:18:33]} 9. Ng3 {[%emt 0:03:58] The position is equal.} bxc4 {[%emt 0:04:04]} 10. Bxc4 {[%emt 0:01:46]} c5 {[%emt 0:09:33]} 11. dxc5 {[%emt 0:09:48]} dxc5 {[%emt 0:29:18]} ({Black should try} 11... Nxc5 $11 12. O-O Bb7) 12. f4 $14 {[%emt 0:04:00]} Ne8 {[%emt 0:05:55]} (12... Bb7 $14) 13. e5 $16 {[%emt 0:03:35]} Nc7 {[%emt 0:06:23][%cal Og6g5]} 14. Qf3 {[%emt 0:07:12]} Rb8 {[%emt 0:02:49]} 15. O-O-O {[%emt 0:01:40]} Nb5 {[%emt 0:05:18] ...Nxc3 is the strong threat.} 16. Nge4 {[%emt 0:12:53]} (16. Nce4 {looks sharper.} Qa5 17. Rhf1 Nd4 18. Bxd4 cxd4 19. Rxd4 Nxe5 20. fxe5 Bxe5 21. Rd5) 16... Nd4 {[%emt 0:10:35]} 17. Qf2 $36 {[%emt 0:02:50][%mdl 2048] White is on the roll.} Rb4 {[%emt 0:00:34]} 18. Bf1 {[%emt 0:05:41]} (18. Bd5 $16) 18... Bb7 $11 {[%emt 0:01:05]} 19. Bg2 {[%emt 0:01:33]} Qb6 {[%emt 0:01:49]} 20. Rd2 {[%emt 0:16:27]} Rb8 {[%emt 0:00:23]} 21. Rhd1 {[%emt 0:01:16][%cal Oe4c5]} Qa5 {[%emt 0:00:40] [#]} (21... Bxe4 $11 22. Nxe4 Ra4 23. Bxd4 Rxa2 (23... cxd4 24. b3 $11)) 22. Nxc5 $1 $16 {[%emt 0:03:48]} Bxg2 {[%emt 0:00:32][%mdl 8192]} (22... Nxc5 $16 23. Rxd4 Nb3+ 24. axb3 Rxb3 25. Bxb7 Qa1+ 26. Nb1 R8xb7 27. Rd8+ Bf8) 23. Nxd7 $18 {[%emt 0:03:26]} (23. Bxd4 Nxc5 24. Bxc5 (24. Qxg2 Ne6 $15) 24... Rc4 25. Qxg2 Rxc5 $17) 23... Nb3+ {[%emt 0:00:30]} (23... Nb5 24. Bb6 (24. Nxb8 Nxc3 25. bxc3 Rxb8 $16) 24... Nxc3 25. Bxa5 Nxa2+ 26. Kb1 Be4+ 27. Rc2 (27. Kxa2 $2 Ra4#) 27... Rxb2+ (27... Bxc2+ $2 {loses.} 28. Qxc2 Rxb2+ 29. Qxb2 $18) 28. Ka1 Rxc2) 24. axb3 {[%emt 0:01:13]} Rxb3 {[%emt 0:00:23]} 25. Qxg2 $4 {[%emt 0:04:27][%mdl 8192] [#]} (25. Rc2 $18 {avoids the disaster.}) 25... Qa1+ $1 $19 {[%emt 0:00:26]} 26. Nb1 {[%emt 0:00:25] [#]} (26. Kc2 $19 Qxb2+ (26... Rxb2+ $2 27. Kd3 $18) 27. Kd3 Qxc3+ 28. Ke2 Qxe3+ 29. Kf1 Qxf4+ 30. Rf2 Qc4+ 31. Kg1) 26... Rc3+ $3 {[%emt 0:00:04][%mdl 512]} 27. Rc2 {[%emt 0:00:49]} Qxb2+ {[%emt 0:00:02] Weighted Error Value: White=0.64/Black=0.42.  Loses game:     	---       	Black=1      Mistake:       	White=1     	Black=5      OK:         	White=5     	Black=5      Best:        	White=2     	Black=1      Strong:       	White=1     	---        Brilliant:      	---       	Black=1} (27... Rxe3 $2 {too greedy.} 28. Nxb8 h5 29. gxh5 $18) 0-1